bitfinex-derivatives/quotes_BNBF0:USTF0_20250331
["timestamp","ask_amount","ask_price","bid_price","bid_amount"]
[1743464576947,0.30352634,606.2,605.11,0.33051841]
[1743464577151,0.30352634,606.19,605.11,0.33051841]
[1743464577347,0.30352634,606.18,605.11,0.33051841]
[1743464577550,0.28742634,606.25,605.11,0.33051841]
[1743464577748,0.30353168,606.24,605.11,0.33051841]
[1743464577948,0.30353168,606.23,605.11,0.33051841]
[1743464578151,0.30353168,606.22,605.11,0.33051841]
[1743464578353,0.30353168,606.21,605.11,0.33051841]
[1743464578555,0.30353168,606.2,605.11,0.33051841]
[1743464578755,0.30353168,606.19,605.11,0.33051841]
[1743464578955,0.30353168,606.18,605.11,0.33051841]
[1743464579153,0.30353168,606.17,605.11,0.33051841]
[1743464579353,0.30353168,606.16,605.11,0.33051841]
[1743464579552,0.30353168,606.15,605.11,0.33051841]
[1743464579749,0.30353168,606.14,605.11,0.33051841]
[1743464579950,0.30353168,606.13,605.11,0.33051841]
[1743464580255,0.30353168,606.12,605.11,0.33051841]
[1743464580456,0.28741091,606.18,605.11,0.33051841]
[1743464580457,0.30353168,606.11,605.11,0.33051841]
[1743464580656,0.28741091,606.18,605.11,0.33051841]
[1743464580657,0.30353168,606.17,605.11,0.33051841]
[1743464580856,0.30353168,606.16,605.11,0.33051841]
[1743464581060,0.30353168,606.15,605.11,0.33051841]
[1743464581260,0.30353168,606.14,605.11,0.33051841]
[1743464581460,0.30353168,606.17,605.11,0.33051841]
[1743464581657,0.30353168,606.16,605.11,0.33051841]
[1743464581855,0.30353168,606.15,605.11,0.33051841]
[1743464582056,0.30353168,606.14,605.11,0.33051841]
[1743464582362,0.30353168,606.13,605.11,0.33051841]
[1743464582560,0.30353168,606.14,605.11,0.33051841]
[1743464582760,0.30353168,606.13,605.11,0.33051841]
[1743464582961,0.30353168,606.14,605.11,0.33051841]
[1743464583163,0.30353168,606.13,605.11,0.33051841]
[1743464583363,0.30353168,606.14,605.11,0.33051841]
[1743464583558,0.30353168,606.13,605.11,0.33051841]
[1743464583758,0.30353168,606.12,605.11,0.33051841]
[1743464583961,0.30353168,606.11,605.11,0.33051841]
[1743464584158,0.30353168,606.1,605.11,0.33051841]
[1743464584367,0.30353168,606.09,605.11,0.33051841]
[1743464584558,0.28743583,606.15,605.11,0.33051841]
[1743464584559,0.30353168,606.14,605.11,0.33051841]
[1743464585159,0.30353168,606.32,605.11,0.33051841]
[1743464585365,0.28742278,606.13,605.11,0.33051841]
[1743464585663,0.30353168,606.12,605.11,0.33051841]
[1743464585963,0.30353168,606.11,605.11,0.33051841]
[1743464588166,0.2874299,606.1,605.11,0.33051841]
[1743464588467,0.30353168,606.09,605.11,0.33051841]
[1743464589964,0.30353196,606.08,605.11,0.33051841]
[1743464590163,0.2874299,606.1,605.11,0.33051841]
[1743464590164,0.30353196,606.07,605.11,0.33051841]
[1743464590361,0.30353196,606.09,605.11,0.33051841]
[1743464590666,0.30353196,606.08,605.11,0.33051841]
[1743464590870,0.2874299,606.1,605.11,0.33051841]
[1743464590871,0.30353196,606.07,605.11,0.33051841]
[1743464591064,0.30353196,606.06,605.11,0.33051841]
[1743464591269,0.30353196,606.05,605.11,0.33051841]
[1743464591572,0.3035334,606.04,605.11,0.33051841]
[1743464591763,0.3035334,606.03,605.11,0.33051841]
[1743464594268,0.28745839,606.02,605.11,0.33051841]
[1743464594462,0.3035334,606.01,605.11,0.33051841]
[1743464596269,0.30359328,606.0,605.11,0.33051841]
[1743464596473,0.30359328,606.01,605.11,0.33051841]
[1743464597067,0.30359328,606.03,605.11,0.33051841]
[1743464597269,0.28749282,606.0,605.11,0.33051841]
[1743464597472,0.30359328,605.99,605.11,0.33051841]
[1743464599370,0.28749282,606.0,605.11,0.33051841]
[1743464599568,0.30365018,605.99,605.11,0.33051841]
[1743464600274,0.59117151,605.98,605.11,0.33051841]
[1743464600474,0.30365018,605.97,605.11,0.33051841]
[1743464603175,0.30365018,605.96,605.11,0.33051841]
[1743464603374,0.30365018,605.95,605.11,0.33051841]
[1743464604072,0.28759023,605.96,605.11,0.33051841]
[1743464604276,0.3036646,605.95,605.11,0.33051841]
[1743464606176,0.3036646,605.94,605.11,0.33051841]
[1743464606476,0.3036646,605.93,605.11,0.33051841]
[1743464607374,0.3036553,605.92,605.11,0.33051841]
[1743464607577,0.3036553,605.93,605.11,0.33051841]
[1743464607775,0.3036553,605.92,605.11,0.33051841]
[1743464607975,0.3036553,605.91,605.11,0.33051841]
[1743464608179,0.3036553,605.93,605.11,0.33051841]
[1743464608374,0.28759023,605.94,605.11,0.33051841]
[1743464608375,0.3036553,605.92,605.11,0.33051841]
[1743464608578,0.3036553,605.91,605.11,0.33051841]
[1743464608775,0.3036553,605.9,605.11,0.33051841]
[1743464608980,0.3036553,605.93,605.11,0.33051841]
[1743464609181,0.30364421,605.92,605.11,0.33051841]
[1743464609375,1.5,606.04,605.11,0.33051841]
[1743464609376,0.28757835,605.89,605.11,0.33051841]
[1743464609577,0.30364421,605.88,605.11,0.33051841]
[1743464612173,0.30364421,606.03,605.11,0.33051841]
[1743464612379,0.28758548,605.87,605.11,0.33051841]
[1743464612680,0.30363251,605.86,605.11,0.33051841]
[1743464612881,0.30363251,605.85,605.11,0.33051841]
[1743464613180,0.30363251,605.84,605.11,0.33051841]
[1743464613376,0.30363251,605.83,605.11,0.33051841]
[1743464613580,0.30363251,605.85,605.11,0.33051841]
[1743464613785,0.28757003,605.86,605.11,0.33051841]
[1743464613981,0.30363022,605.85,605.11,0.33051841]
[1743464615177,0.30363022,605.84,605.11,0.33051841]
[1743464615381,0.28758905,605.84,605.11,0.33051841]
[1743464615578,0.3036311,605.83,605.11,0.33051841]
[1743464616983,0.28758905,605.84,605.11,0.33051841]
[1743464617185,0.30362904,605.83,605.11,0.33051841]
[1743464618285,0.30362904,605.82,605.11,0.33051841]
[1743464618585,0.28756647,605.82,605.11,0.33051841]
[1743464618787,0.30363263,605.81,605.11,0.33051841]
[1743464621290,0.28754984,605.8,605.11,0.33051841]
[1743464621684,0.30363263,605.79,605.11,0.33051841]
[1743464621883,0.30363121,605.78,605.11,0.33051841]
[1743464622087,0.30363121,605.77,605.11,0.33051841]
[1743464622287,0.30363121,605.76,605.11,0.33051841]
[1743464622484,0.30363121,605.75,605.11,0.33051841]
[1743464622690,0.30363121,605.74,605.11,0.33051841]
[1743464622885,0.30363121,605.79,605.11,0.33051841]
[1743464623288,0.28754984,605.8,605.11,0.33051841]
[1743464623485,0.30363267,605.79,605.11,0.33051841]
[1743464624388,0.59116587,605.78,605.11,0.33051841]
[1743464624586,0.30363267,605.77,605.11,0.33051841]
[1743464626497,0.2875332,605.78,605.11,0.33051841]
[1743464626699,0.30363068,605.77,605.11,0.33051841]
[1743464627196,0.30363068,605.76,605.11,0.33051841]
[1743464627394,0.30363068,605.75,605.11,0.33051841]
[1743464630295,0.28755696,605.74,605.11,0.33051841]
[1743464630797,0.30363068,605.73,605.11,0.33051841]
[1743464632397,0.28755696,605.74,605.11,0.33051841]
[1743464632999,0.30362345,605.73,605.11,0.33051841]
[1743464633194,0.28755696,605.74,605.11,0.33051841]
[1743464635202,0.30361911,605.73,605.11,0.33051841]
[1743464636306,0.28755459,605.72,605.11,0.33051841]
[1743464637910,0.30362748,605.71,605.11,0.33051841]
[1743464639013,1.704,605.73,605.11,0.33051841]
[1743464639209,0.30362221,605.72,605.11,0.33051841]
[1743464639409,0.2875534,605.7,605.11,0.33051841]
[1743464640011,1.704,605.73,605.11,0.33051841]
[1743464664134,0.30358663,605.72,605.11,0.33051841]
[1743464664333,1.704,605.73,605.11,0.33051841]
[1743464668542,0.28749876,605.81,605.11,0.33051841]
[1743464668742,0.30358663,605.8,605.11,0.33051841]
[1743464668943,3.61275754,606.41,605.11,0.33051841]
[1743464669243,0.63340193,606.4,605.11,0.33051841]
[1743464669538,0.63340737,606.39,605.11,0.33051841]
[1743464669743,0.63341281,606.38,605.11,0.33051841]
[1743464669944,0.63341825,606.37,605.11,0.33051841]
[1743464670138,0.63342369,606.36,605.11,0.33051841]
[1743464670341,0.30358663,606.35,605.11,0.33051841]
[1743464670547,0.63343457,606.34,605.11,0.33051841]
[1743464670743,0.63344001,606.33,605.11,0.33051841]
[1743464671042,0.63344545,606.32,605.11,0.33051841]
[1743464671244,0.63345089,606.31,605.11,0.33051841]
[1743464671545,0.63345633,606.3,605.11,0.33051841]
[1743464671745,0.63346177,606.29,605.11,0.33051841]
[1743464671945,0.30358663,606.28,605.11,0.33051841]
[1743464672146,0.30358663,606.27,605.11,0.33051841]
[1743464672346,0.30358663,606.26,605.11,0.33051841]
[1743464672640,0.30358663,606.25,605.11,0.33051841]
[1743464672846,0.28745601,606.28,605.11,0.33051841]
[1743464672847,0.30358663,606.24,605.11,0.33051841]
[1743464673048,0.30358663,606.23,605.11,0.33051841]
[1743464673250,0.30358663,606.22,605.11,0.33051841]
[1743464673553,0.30358663,606.21,605.11,0.33051841]
[1743464673747,0.30358663,606.2,605.11,0.33051841]
[1743464673951,0.30358663,606.27,605.11,0.33051841]
[1743464674250,0.30358663,606.26,605.11,0.33051841]
[1743464674548,0.30358663,606.25,605.11,0.33051841]
[1743464674752,0.30358663,606.24,605.11,0.33051841]
[1743464674948,0.30358663,606.23,605.11,0.33051841]
[1743464675144,0.30358663,606.22,605.11,0.33051841]
[1743464675345,0.30358663,606.21,605.11,0.33051841]
[1743464675550,0.30358663,606.2,605.11,0.33051841]
[1743464675752,0.30358663,606.19,605.11,0.33051841]
[1743464675950,0.30358663,606.18,605.11,0.33051841]
[1743464676146,0.30358663,606.17,605.11,0.33051841]
[1743464676351,0.30358663,606.16,605.11,0.33051841]
[1743464676546,0.28746551,606.23,605.11,0.33051841]
[1743464676547,0.30358663,606.15,605.11,0.33051841]
[1743464676746,0.30358663,606.14,605.11,0.33051841]
[1743464676946,0.30360211,606.13,605.11,0.33051841]
[1743464677151,0.30360211,606.12,605.11,0.33051841]
[1743464677453,0.30360211,606.11,605.11,0.33051841]
[1743464677652,0.30360211,606.1,605.11,0.33051841]
[1743464677952,0.30360211,606.09,605.11,0.33051841]
[1743464678152,0.30360211,606.08,605.11,0.33051841]
[1743464678353,0.30360211,606.07,605.11,0.33051841]
[1743464678553,0.30360211,606.06,605.11,0.33051841]
[1743464678749,0.30360211,606.05,605.11,0.33051841]
[1743464678953,0.30360211,606.04,605.11,0.33051841]
[1743464679154,0.30360211,606.22,605.11,0.33051841]
[1743464679455,0.30360211,606.21,605.11,0.33051841]
[1743464679654,0.30360211,606.2,605.11,0.33051841]
[1743464679858,0.30360211,606.19,605.11,0.33051841]
[1743464680057,0.30360211,606.18,605.11,0.33051841]
[1743464680254,0.30360211,606.17,605.11,0.33051841]
[1743464680450,0.30360211,606.16,605.11,0.33051841]
[1743464680654,0.30360211,606.15,605.11,0.33051841]
[1743464680854,0.30360211,606.14,605.11,0.33051841]
[1743464681052,0.30360211,606.13,605.11,0.33051841]
[1743464681357,0.30360211,606.12,605.11,0.33051841]
[1743464681557,0.28751539,606.13,605.11,0.33051841]
[1743464681753,0.30366996,606.12,605.11,0.33051841]
[1743464681955,0.30366996,606.11,605.11,0.33051841]
[1743464682159,0.30366996,606.1,605.11,0.33051841]
[1743464682456,0.30366996,606.09,605.11,0.33051841]
[1743464682759,0.30366996,606.08,605.11,0.33051841]
[1743464682961,0.30366996,606.07,605.11,0.33051841]
[1743464683156,0.30366996,606.06,605.11,0.33051841]
[1743464683362,0.28751539,606.13,605.11,0.33051841]
[1743464683363,0.30366996,606.05,605.11,0.33051841]
[1743464683562,0.30366996,606.04,605.11,0.33051841]
[1743464683758,0.30366996,606.03,605.11,0.33051841]
[1743464684064,0.30366996,606.02,605.11,0.33051841]
[1743464684262,0.30366996,606.01,605.11,0.33051841]
[1743464684462,0.30366996,606.0,605.11,0.33051841]
[1743464684763,0.28753796,606.02,605.11,0.33051841]
[1743464684962,0.30365109,606.01,605.11,0.33051841]
[1743464685163,0.30365109,606.0,605.11,0.33051841]
[1743464685362,0.28753796,606.02,605.11,0.33051841]
[1743464685363,0.30365109,605.99,605.11,0.33051841]
[1743464685559,0.30365109,605.98,605.11,0.33051841]
[1743464685757,0.30365109,605.97,605.11,0.33051841]
[1743464685962,0.30365109,606.01,605.11,0.33051841]
[1743464686158,0.30365109,606.0,605.11,0.33051841]
[1743464686362,0.30365109,605.99,605.11,0.33051841]
[1743464686557,0.30365109,606.01,605.11,0.33051841]
[1743464686762,0.30365109,606.0,605.11,0.33051841]
[1743464687064,0.30365109,605.99,605.11,0.33051841]
[1743464687264,0.30365109,605.98,605.11,0.33051841]
[1743464689860,1.28,605.97,605.11,0.33051841]
[1743464690167,0.30365109,605.96,605.11,0.33051841]
[1743464690569,0.30365109,605.95,605.11,0.33051841]
[1743464690770,0.30365109,605.94,605.11,0.33051841]
[1743464690969,0.30365109,605.93,605.11,0.33051841]
[1743464691169,0.30365109,605.92,605.11,0.33051841]
[1743464691370,0.30365109,605.91,605.11,0.33051841]
[1743464691668,0.30365109,605.9,605.11,0.33051841]
[1743464691863,0.30365109,605.89,605.11,0.33051841]
[1743464692062,0.30365109,605.95,605.11,0.33051841]
[1743464692263,0.30365109,605.94,605.11,0.33051841]
[1743464692463,0.30365109,605.93,605.11,0.33051841]
[1743464692663,0.30365109,605.92,605.11,0.33051841]
[1743464692866,0.30365109,605.95,605.11,0.33051841]
[1743464693066,1.28,605.97,605.11,0.33051841]
[1743464693266,0.30363056,605.96,605.11,0.33051841]
[1743464693674,0.30363056,605.95,605.11,0.33051841]
[1743464696270,0.303647,605.94,605.11,0.33051841]
[1743464696467,0.303647,605.93,605.11,0.33051841]
[1743464699267,0.28749639,605.92,605.11,0.33051841]
[1743464699669,0.303647,605.91,605.11,0.33051841]
[1743464700677,0.28749639,605.92,605.11,0.33051841]
[1743464700868,0.30363915,605.91,605.11,0.33051841]
[1743464702174,0.30363915,605.9,605.11,0.33051841]
[1743464702373,0.28749282,605.9,605.11,0.33051841]
[1743464702573,0.30363915,605.89,605.11,0.33051841]
[1743464703673,0.30364847,605.88,605.11,0.33051841]
[1743464703873,0.30364847,605.89,605.11,0.33051841]
[1743464704070,0.28749282,605.9,605.11,0.33051841]
[1743464704375,0.30364819,605.89,605.11,0.33051841]
[1743464705277,0.59114101,605.88,605.11,0.33051841]
[1743464705472,0.30364819,605.87,605.11,0.33051841]
[1743464706979,0.30363644,605.86,605.11,0.33051841]
[1743464707174,0.30363644,605.87,605.11,0.33051841]
[1743464707478,0.30363644,605.86,605.11,0.33051841]
[1743464707677,0.30363644,605.85,605.11,0.33051841]
[1743464707875,0.30363644,605.84,605.11,0.33051841]
[1743464708072,0.30363644,605.87,605.11,0.33051841]
[1743464708274,0.28749639,605.83,605.11,0.33051841]
[1743464708474,0.30365356,605.82,605.11,0.33051841]
[1743464711380,0.28749639,605.83,605.11,0.33051841]
[1743464711580,0.30367568,605.82,605.11,0.33051841]
[1743464712979,0.28749639,605.83,605.11,0.33051841]
[1743464713283,0.30367653,605.82,605.11,0.33051841]
[1743464714281,0.59122518,605.81,605.11,0.33051841]
[1743464714477,0.28754865,605.81,605.11,0.33051841]
[1743464714682,0.30370621,605.8,604.35,4.54470122]
[1743464714877,0.30370621,605.8,604.37,0.33092311]
[1743464716481,1.112,605.79,604.37,0.33092311]
[1743464716683,0.30370621,605.78,604.37,0.33092311]
[1743464716982,0.30370621,605.77,604.37,0.33092311]
[1743464717290,0.30370621,605.76,604.37,0.33092311]
[1743464717489,0.30370621,605.78,604.37,0.33092311]
[1743464717689,1.112,605.79,604.37,0.33092311]
[1743464717887,0.30378338,605.78,604.37,0.33092311]
[1743464719785,1.112,605.79,604.37,0.33092311]
[1743464719991,0.30383993,605.78,604.37,0.33092311]
[1743464720386,0.28768533,605.77,604.37,0.33092311]
[1743464720585,0.30383993,605.76,604.37,0.33092311]
[1743464720892,0.30383937,605.75,604.37,0.33092311]
[1743464721192,0.30383937,605.74,604.37,0.33092311]
[1743464721392,0.30383937,605.73,604.37,0.33092311]
[1743464721586,0.30383937,605.76,604.37,0.33092311]
[1743464721791,0.30383937,605.75,604.37,0.33092311]
[1743464721991,0.30383937,605.74,604.37,0.33092311]
[1743464722189,0.30383937,605.76,604.37,0.33092311]
[1743464723194,0.30383937,605.78,604.37,0.33092311]
[1743464723493,0.2877448,605.75,604.37,0.33092311]
[1743464723899,0.30384128,605.74,604.37,0.33092311]
[1743464726289,0.28775789,605.73,604.37,0.33092311]
[1743464726494,0.30384128,605.72,604.37,0.33092311]
[1743464728900,0.3038501,605.71,604.37,0.33092311]
[1743464729096,0.3038501,605.7,604.37,0.33092311]
[1743464729293,0.3038501,605.72,604.37,0.33092311]
[1743464729497,0.3038501,605.71,604.37,0.33092311]
[1743464729698,0.3038501,605.72,604.37,0.33092311]
[1743464729898,0.3038501,605.71,604.37,0.33092311]
[1743464730098,0.3038501,605.7,604.37,0.33092311]
[1743464730298,0.3038501,605.69,604.37,0.33092311]
[1743464730499,0.30384982,605.68,604.37,0.33092311]
[1743464730695,0.30384982,605.72,604.37,0.33092311]
[1743464732194,0.30384982,605.78,604.37,0.33092311]
[1743464732395,0.28777335,605.71,604.37,0.33092311]
[1743464732697,0.30384982,605.7,604.37,0.33092311]
[1743464733801,0.30384982,605.69,604.37,0.33092311]
[1743464734096,0.30384982,605.68,604.37,0.33092311]
[1743464734302,0.30384982,605.67,604.37,0.33092311]
[1743464734604,0.30384982,605.66,604.37,0.33092311]
[1743464734902,0.30384982,605.65,604.37,0.33092311]
[1743464735105,0.30384982,605.64,604.37,0.33092311]
[1743464735301,0.30384982,605.63,604.37,0.33092311]
[1743464735498,0.30384982,605.62,604.37,0.33092311]
[1743464735698,0.30384982,605.61,604.37,0.33092311]
[1743464735901,0.30384982,605.6,604.37,0.33092311]
[1743464736101,0.30384982,605.59,604.37,0.33092311]
[1743464736303,0.30384982,605.58,604.37,0.33092311]
[1743464736500,0.30384982,605.57,604.37,0.33092311]
[1743464736701,0.28777692,605.64,604.37,0.33092311]
[1743464736902,0.30383479,605.63,604.37,0.33092311]
[1743464737099,0.30383479,605.62,604.37,0.33092311]
[1743464737301,0.30383479,605.61,604.37,0.33092311]
[1743464737499,0.30383479,605.6,604.37,0.33092311]
[1743464737702,0.30383479,605.59,604.37,0.33092311]
[1743464737901,0.30383479,605.58,604.37,0.33092311]
[1743464738103,0.30383479,605.57,604.37,0.33092311]
[1743464738304,0.30383479,605.56,604.37,0.33092311]
[1743464738505,0.30383479,605.55,604.37,0.33092311]
[1743464738702,0.30383479,605.54,604.37,0.33092311]
[1743464738906,0.30383479,605.53,604.37,0.33092311]
[1743464739104,0.30383479,605.52,604.37,0.33092311]
[1743464739303,0.30383479,605.51,604.37,0.33092311]
[1743464739502,0.30383479,605.56,604.37,0.33092311]
[1743464739702,0.30383479,605.55,604.37,0.33092311]
[1743464739901,0.30383479,605.56,604.37,0.33092311]
[1743464740208,0.30383479,605.55,604.37,0.33092311]
[1743464740408,0.30383479,605.54,604.37,0.33092311]
[1743464740611,0.30383479,605.53,604.37,0.33092311]
[1743464740908,0.30383479,605.52,604.37,0.33092311]
[1743464741111,0.30383479,605.51,604.37,0.33092311]
[1743464741310,0.28773885,605.51,604.37,0.33092311]
[1743464741508,0.30383479,605.5,604.37,0.33092311]
[1743464742107,0.28773885,605.51,604.37,0.33092311]
[1743464744011,1.112,605.79,604.37,0.33092311]
[1743464744311,0.28771863,605.5,604.37,0.33092311]
[1743464744706,1.112,605.79,604.37,0.33092311]
[1743464744906,0.28771031,605.5,604.37,0.33092311]
[1743464745412,1.112,605.79,604.37,0.33092311]
[1743464745612,0.28769009,605.5,604.37,0.33092311]
[1743464746111,1.112,605.79,604.37,0.33092311]
[1743464746312,0.28769009,605.5,604.37,0.33092311]
[1743464746506,1.112,605.79,604.37,0.33092311]
[1743464746706,0.30371425,605.78,604.37,0.33092311]
[1743464747012,0.59140315,605.78,604.37,0.33092311]
[1743464747212,0.30371425,605.77,604.37,0.33092311]
[1743464747911,0.30371825,605.76,604.37,0.33092311]
[1743464748113,0.30371825,605.75,604.37,0.33092311]
[1743464748411,0.30371825,605.74,604.37,0.33092311]
[1743464748612,0.30371825,605.77,604.37,0.33092311]
[1743464748811,0.30371825,605.76,604.37,0.33092311]
[1743464749107,0.30371825,605.75,604.37,0.33092311]
[1743464749312,0.30371825,605.77,604.37,0.33092311]
[1743464749512,0.30371825,605.76,604.37,0.33092311]
[1743464749712,0.30371825,605.75,604.37,0.33092311]
[1743464749913,0.30371825,605.74,604.37,0.33092311]
[1743464750116,0.30371825,605.77,604.37,0.33092311]
[1743464750313,0.30371825,605.76,604.37,0.33092311]
[1743464750613,0.30371825,605.75,604.37,0.33092311]
[1743464750813,0.30371825,605.77,604.37,0.33092311]
[1743464751013,0.30372922,605.76,604.37,0.33092311]
[1743464751212,0.30372922,605.77,604.37,0.33092311]
[1743464751413,0.30372922,605.76,604.37,0.33092311]
[1743464751614,0.30372922,605.77,604.37,0.33092311]
[1743464751815,0.30372922,605.76,604.37,0.33092311]
[1743464752015,0.30372922,605.77,604.37,0.33092311]
[1743464752215,0.30372922,605.76,604.37,0.33092311]
[1743464752417,0.30372922,605.77,604.37,0.33092311]
[1743464752618,0.30372922,605.76,604.37,0.33092311]
[1743464752813,0.30372922,605.75,604.37,0.33092311]
[1743464753018,0.30372922,605.74,604.37,0.33092311]
[1743464753214,0.30372922,605.73,604.37,0.33092311]
[1743464753416,0.30372922,605.72,604.37,0.33092311]
[1743464753619,0.30372922,605.71,604.37,0.33092311]
[1743464753812,0.28766869,605.74,604.37,0.33092311]
[1743464753813,0.30372922,605.7,604.37,0.33092311]
[1743464754015,0.30372922,605.69,604.37,0.33092311]
[1743464754219,0.30373597,605.68,604.37,0.33092311]
[1743464754419,0.30373597,605.73,604.37,0.33092311]
[1743464754620,0.30373597,605.72,604.37,0.33092311]
[1743464754820,0.28766869,605.74,604.37,0.33092311]
[1743464754821,0.30373597,605.73,604.37,0.33092311]
[1743464755119,0.30373597,605.72,604.37,0.33092311]
[1743464755319,0.30373597,605.73,604.37,0.33092311]
[1743464755519,0.30373597,605.72,604.37,0.33092311]
[1743464755720,0.30373597,605.73,604.37,0.33092311]
[1743464756421,0.28764015,605.72,604.37,0.33092311]
[1743464756819,0.30373597,605.71,604.37,0.33092311]
[1743464759034,0.30374606,605.7,604.37,0.33092311]
[1743464759229,0.30374606,605.69,604.37,0.33092311]
[1743464759431,0.28767225,605.7,604.37,0.33092311]
[1743464759630,0.30374606,605.69,604.37,0.33092311]
[1743464761730,0.30376385,605.68,604.37,0.33092311]
[1743464761930,0.30376385,605.69,604.37,0.33092311]
[1743464762132,0.30376385,605.68,604.37,0.33092311]
[1743464762431,0.59144918,605.67,604.37,0.33092311]
[1743464762628,0.30376385,605.66,604.37,0.33092311]
[1743464765231,0.30376385,605.65,604.37,0.33092311]
[1743464765433,0.30376385,605.64,604.37,0.33092311]
[1743464768231,0.30376385,605.78,604.37,0.33092311]
[1743464768437,0.28767106,605.63,604.37,0.33092311]
[1743464768635,0.30376385,605.62,604.37,0.33092311]
[1743464768838,0.30376385,605.61,604.37,0.33092311]
[1743464769039,0.30376385,605.6,604.37,0.33092311]
[1743464769234,0.30376385,605.59,604.37,0.33092311]
[1743464769435,0.30376385,605.61,604.37,0.33092311]
[1743464769634,0.30376385,605.58,604.37,0.33092311]
[1743464769838,0.30376385,605.57,604.37,0.33092311]
[1743464770038,0.30376385,605.61,604.37,0.33092311]
[1743464770237,0.30376385,605.6,604.37,0.33092311]
[1743464770438,0.30376385,605.59,604.37,0.33092311]
[1743464770741,0.30376385,605.58,604.37,0.33092311]
[1743464770941,0.30376385,605.57,604.37,0.33092311]
[1743464771132,1.112,605.79,604.37,0.33092311]
[1743464771133,0.30376385,605.61,604.37,0.33092311]
[1743464771337,0.28765798,605.57,604.37,0.33092311]
[1743464771538,0.30376385,605.56,604.37,0.33092311]
[1743464774339,0.28764847,605.55,604.37,0.33092311]
[1743464774640,0.30376385,605.54,604.37,0.33092311]
[1743464775139,0.30376385,605.54,604.38,2.71074613]
[1743464776143,0.30376385,605.54,604.4,0.33090668]
[1743464777240,0.30376385,605.53,604.4,0.33090668]
[1743464777437,0.30376385,605.52,604.4,0.33090668]
[1743464777943,0.30376385,605.52,604.41,2.71074613]
[1743464778145,0.30376385,605.52,604.43,0.33089026]
[1743464778539,1.373,605.51,604.43,0.33089026]
[1743464778744,0.30376385,605.5,604.43,0.33089026]
[1743464779143,1.373,605.51,604.43,0.33089026]
[1743464779338,0.30378705,605.5,604.43,0.33089026]
[1743464780643,0.28766631,605.49,604.43,0.33089026]
[1743464780849,0.30378705,605.48,604.43,0.33089026]
[1743464783247,0.30378705,605.5,604.43,0.33089026]
[1743464783446,0.28770793,605.47,604.43,0.33089026]
[1743464783748,0.30378705,605.46,604.43,0.33089026]
[1743464783944,0.30379809,605.45,604.43,0.33089026]
[1743464784141,0.30379809,605.46,604.43,0.33089026]
[1743464784342,0.28770793,605.47,604.43,0.33089026]
[1743464784544,0.3037991,605.46,604.43,0.33089026]
[1743464786449,0.59152725,605.45,604.43,0.33089026]
[1743464786648,0.28772815,605.45,604.43,0.33089026]
[1743464788246,0.30379315,605.44,604.43,0.33089026]
[1743464789353,0.28772815,605.43,604.43,0.33089026]
[1743464792148,1.373,605.51,604.43,0.33089026]
[1743464792453,0.28767701,605.46,604.43,0.33089026]
[1743464792653,0.30373772,605.45,604.44,2.71074613]
[1743464792853,0.30373772,605.45,604.46,0.33087383]
[1743464794257,0.30373772,605.45,604.47,2.71074613]
[1743464794449,0.28767701,605.46,604.49,0.33085741]
[1743464795051,0.30373547,605.45,604.49,0.33085741]
[1743464795253,0.30373547,605.44,604.49,0.33085741]
[1743464795455,0.28761876,605.46,604.49,0.33085741]
[1743464795656,0.30374237,605.45,604.49,0.33085741]
[1743464795849,0.30374237,605.45,604.5,2.71074613]
[1743464796051,0.30374237,605.45,604.52,0.33084099]
[1743464796753,0.28761876,605.46,604.52,0.33084099]
[1743464797056,0.30374237,605.45,604.52,0.33084099]
[1743464798351,0.28761994,605.46,604.52,0.33084099]
[1743464798657,0.30374116,605.45,604.52,0.33084099]
[1743464798856,0.30374116,605.45,604.53,2.71074613]
[1743464799058,0.30374116,605.45,604.54,0.33083005]
[1743464800155,0.30374116,605.45,604.54,3.04157618]
[1743464800953,0.30374116,605.45,604.54,4.87553127]
[1743464801158,0.30374116,605.45,604.55,1.83395509]
[1743464801354,0.28761638,605.46,604.56,0.3308191]
[1743464801554,0.30374116,605.45,604.56,3.04156523]
[1743464801759,0.30374116,605.45,604.56,4.87552032]
[1743464801954,0.30374116,605.45,604.57,1.83395509]
[1743464802157,0.30374116,605.45,604.58,0.33080816]
[1743464802859,0.30374116,605.45,604.59,2.71074613]
[1743464803056,0.30374116,605.45,604.6,0.33079722]
[1743464803961,0.30374116,605.45,604.61,2.71074613]
[1743464804158,0.30374116,605.45,604.62,0.33078627]
[1743464804354,0.30374116,605.44,604.62,0.33078627]
[1743464804554,0.30374116,605.45,604.62,0.33078627]
[1743464804757,0.30374116,605.44,604.62,0.33078627]
[1743464804957,0.30374223,605.43,604.62,0.33078627]
[1743464805157,0.30374223,605.42,604.62,0.33078627]
[1743464805353,0.28761044,605.46,604.63,2.71074613]
[1743464806160,0.28761044,605.46,604.64,0.33077533]
[1743464807260,1.373,605.51,604.64,0.33077533]
[1743464807561,0.28759974,605.46,604.64,0.33077533]
[1743464810160,2.521706,606.3,604.64,0.33077533]
[1743464810360,0.28757479,605.46,604.64,0.33077533]
[1743464810760,2.521706,606.3,604.64,0.33077533]
[1743464810962,0.28757479,605.46,604.64,0.33077533]
[1743464811462,2.521706,606.31,604.64,0.33077533]